Cogmind - Beta 14 @@@ ROGUE MODE // 2024.08.11 @ 17:25:00 Player: PhazeDK Result: Destroyed by 9P-KJQ(R) with Subdweller Laser Performance ------------- Evolutions (0) 0 Regions Visited (3) 600 Robots Destroyed (30) 150 Value Destroyed (805) 805 Prototype IDs (0) 0 Alien Tech Used (0) 0 Bonus (0) 0 TOTAL SCORE: 1555 Bonus ------- None Cogmind --------- Core Integrity 0/250 Matter 300/300 Energy 45/100 System Corruption 1% Temperature Cool (6) Movement Treading (160) Location -10/Subcaves Parts ------- > --- POWER (1) -------- (None) > --- PROPULSION (2) --- Light Treads Light Treads > --- UTILITY (2) ------ Medium Storage Unit Visual Processing Unit > --- WEAPON (2) ------- Mining Laser > --- INVENTORY (10) --- Humpback Large Matter Pod (150) Targeting Computer Light Armor Plating Scrap Shield Tractor Beam Rocket Launcher Peak State ------------ > --- POWER ------------ Light Angular Momentum Engine > --- PROPULSION ------- Light Treads Light Treads > --- UTILITY ---------- Medium Storage Unit Visual Processing Unit > --- WEAPON ----------- Beamcaster Rocket Launcher > --- INVENTORY -------- Light Ion Engine Light Treads Light Treads Heat Sink Large Matter Pod Sensor Array Targeting Computer Weapon Shielding Tractor Beam Assault Rifle [Rating: 18] Favorites ----------- Power Ion Engine Engine Ion Engine Propulsion Light Treads Treads Light Treads Utility Medium Storage Unit Device Heat Sink Storage Medium Storage Unit Processor Visual Processing Unit Weapon Grenade Launcher Energy Gun Beamcaster Ballistic Gun Assault Rifle Launcher Grenade Launcher Special Weapon Mining Laser Build | -11 -10 -10 -10 ------- Run | Yrd Mat Min Sub Slots Evolved . | . . . . Power . | . . . . Propulsion . | . . . . Utility . | . . . . Weapon . | . . . . Parts Attached 24 | 8 9 4 3 Power 5 | 3 . 1 1 Engine 5 | 3 . 1 1 Core . | . . . . Reactor . | . . . . Propulsion 6 | 2 2 1 1 Treads 6 | 2 2 1 1 Leg . | . . . . Wheel . | . . . . Hover . | . . . . Flight . | . . . . Utility 6 | 1 5 . . Device 2 | . 2 . . Storage 2 | 1 1 . . Processor 2 | . 2 . . Hackware . | . . . . Protection . | . . . . Artifact . | . . . . Weapon 7 | 2 2 2 1 Energy Gun 2 | 1 . 1 . Energy Cannon . | . . . . Ballistic Gun 1 | 1 . . . Ballistic Cannon . | . . . . Launcher 2 | . 1 1 . Special Weapon 2 | . 1 . 1 Impact Weapon . | . . . . Slashing Weapon . | . . . . Piercing Weapon . | . . . . Special Melee Weapon . | . . . . Unidentified Prototypes . | . . . . Parts Lost 3 | . . . 3 Power 2 | . . . 2 Propulsion . | . . . . Utility . | . . . . Weapon 1 | . . . 1 Highest Loss Streak 2 | . . . 2 To Critical Strikes . | . . . . Average Slot Usage (%) 97 | . 98 100 94 Engine 13 | . 14 14 13 Treads 28 | . 28 28 28 Device 2 | . 4 . . Storage 14 | . 14 14 14 Processor 10 | . 7 14 14 Energy Gun 4 | . 1 5 13 Ballistic Gun 4 | . 7 . . Launcher 12 | . 12 14 9 Special Weapon 5 | . 6 8 . Peak Build Rating 18 | 6 9 18 18 Average Rating 10 | 4 7 12 16 On Entrance 8 | . 6 9 17 Naked Turns . | . . . . Heaviest Build 28 | 13 21 28 28 Greatest Support 40 | 40 40 40 40 Greatest Overweight (x) . | . . . . Average Overweight (x) . | . . . . Largest Inventory Capacity 10 | 8 10 10 10 Average Capacity 9 | 7 9 10 10 Most Carried 10 | 3 10 10 10 Average Carried 8 | 1 8 9 9 Final Capacity 10 | 8 10 10 10 Final Carried 10 | 3 10 9 9 Class Distribution -------------------- 85% | Mutant 14% | Scavenger-Mutant Dominant Class ---------------- Mutant | -10/Materials Mutant | -10/Mines Mutant | -10/Subcaves Resources | -11 -10 -10 -10 ----------- Run | Yrd Mat Min Sub Matter Collected 1218 | 257 530 231 200 Remotely . | . . . . Salvage Created 623 | 52 278 152 141 Parts 50 | . 29 8 13 Haulers Intercepted 2 | . 2 . . Recyclers Shooed 3 | . 3 . . Parts Field Recycled . | . . . . Retrieved Matter . | . . . . Parts Self-Destructed 2 | . . . 2 Prevented . | . . . . Kills | -11 -10 -10 -10 ------- Run | Yrd Mat Min Sub Combat Hostiles Destroyed 24 | . 12 6 6 Guns 4 | . 2 2 . AOE 20 | . 10 4 6 Classes Destroyed 9 | 1 4 3 1 Worker 1 | . . 1 . Builder 1 | . . 1 . Hauler 2 | . 2 . . Recycler 1 | 1 . . . Watcher 1 | . 1 . . Swarmer 6 | . 3 3 . Grunt 11 | . 9 2 . Sentry 2 | . . 1 1 Subdweller 5 | . . . 5 Best Kill Streak 5 | 1 4 4 5 Combat Bots Only 5 | . 4 3 5 Max Kills in Single Turn 3 | 1 1 3 1 Gunslinging . | . . . . Exploded 2 | . 1 2 1 Melee . | . . . . Uniques/NPCs Destroyed . | . . . . Combat | -11 -10 -10 -10 -------- Run | Yrd Mat Min Sub Hostile Shots Fired 69 | . 31 18 20 Missed 21 | . 11 2 8 Damage Taken 976 | . 246 311 419 Core 260 | . 54 81 125 Absorbed by Shields . | . . . . Core Remaining (%) 100 | 100 . . . Volleys Fired 82 | 3 47 16 16 Largest 2 | 2 2 1 1 Hottest 100 | 60 100 75 100 Shots Fired 103 | 6 62 18 17 Gun 64 | 6 43 13 2 Cannon . | . . . . Launcher 35 | . 17 5 13 Special 4 | . 2 . 2 Kinetic 31 | 3 28 . . Thermal 37 | 3 17 13 4 Explosive 35 | . 17 5 13 Electromagnetic . | . . . . Robot Hit Streak 11 | 2 8 11 9 Robot Miss Streak 3 | 2 3 1 2 Penetration Max . | . . . . Secondary Targets . | . . . . Shots Hit Robots 59 | 4 32 13 10 Core Hits 49 | 2 30 8 9 Critical Kills . | . . . . Critical Parts Destroyed . | . . . . Critical Strikes 2 | . . 2 . Burn 2 | . . 2 . Melee Attacks . | . . . . Impact . | . . . . Slashing . | . . . . Piercing . | . . . . Sneak Attacks . | . . . . Combat Hostiles . | . . . . Follow-up Attacks . | . . . . Damage Inflicted 2421 | 50 1170 488 713 Guns 654 | 50 351 253 . Cannons . | . . . . Explosions 1746 | . 816 217 713 Melee . | . . . . Ramming 21 | . 3 18 . Kinetic 247 | 29 218 . . Thermal 407 | 21 133 253 . Explosive 1746 | . 816 217 713 Electromagnetic . | . . . . Impact . | . . . . Slashing . | . . . . Piercing . | . . . . Highest Corruption 1 | . 1 1 1 Average Corruption 1 | . 1 1 1 Corruption Purged . | . . . . Corruption Blocked . | . . . . Effects 25 | . 12 7 6 Message Errors 3 | . 2 . 1 Matter Fused 5 | . 2 2 1 Heat Flow Errors 2 | . 1 . 1 Energy Discharges 5 | . 3 2 . Data Loss (minor) 5 | . 3 1 1 Data Loss (major) 1 | . 1 . . Misfires 3 | . . 2 1 Alerts 1 | . . . 1 Overload Shots . | . . . . Overflow Damage 15 | . 15 . . Projectiles . | . . . . Explosions 15 | . 15 . . Melee . | . . . . Knockbacks . | . . . . Impact . | . . . . Kinetic . | . . . . Secondary . | . . . . Self-Inflicted Damage 249 | . . 84 165 Shots 10 | . . 3 7 Rammed 7 | . 1 6 . Targets Rammed 8 | . 1 7 . Kicked . | . . . . Crushed 1 | . . 1 . Highest Temperature 302 | . 120 302 200 Average Temperature 108 | . 24 154 109 Received Heat Transfer 249 | . 99 108 42 Effects 1 | . . 1 . Interference 1 | . . 1 . Siege Activations . | . . . . Robots Corrupted . | . . . . Combat Hostiles . | . . . . Parts Fried . | . . . . Impact Corruptions . | . . . . Robots Melted . | . . . . Combat Hostiles . | . . . . Parts Melted 4 | . . 4 . Heat Transferred 942 | 50 300 592 . Parts Sabotaged . | . . . . Parts Stolen . | . . . . Parts Stripped . | . . . . Power Chain Reactions . | . . . . Alert | -11 -10 -10 -10 ------- Run | Yrd Mat Min Sub Peak Influence 289 | 5 289 124 . Initial 3 | . 3 . . Average 39 | 2 55 15 . Maximum Alert Level 1 | . 1 . . Low Security (%) 97 | 100 96 100 . Level 1 2 | . 3 . . Level 2 . | . . . . Level 3 . | . . . . Level 4 . | . . . . Level 5 . | . . . . High Security . | . . . . Max Security . | . . . . Squads Dispatched 1 | . 1 . . Investigation 1 | . 1 . . Extermination . | . . . . Reinforcement . | . . . . Assault . | . . . . Garrison . | . . . . Intercept . | . . . . Searches Triggered . | . . . . Construction Impeded . | . . . . Haulers Reinforced . | . . . . Active Scanning Responses . | . . . . Cargo Convoy Interrupts . | . . . . Stealth | -11 -10 -10 -10 --------- Run | Yrd Mat Min Sub Distress Signals 3 | . 3 . . Communications Jammed . | . . . . Distress Signals . | . . . . Times Spotted 33 | . 21 5 7 Peak Tracking Total 4 | . 4 3 4 Tactical Retreats 3 | . 3 . . Traps | -11 -10 -10 -10 ------- Run | Yrd Mat Min Sub Traps Triggered 2 | . 2 . . Indirectly . | . . . . Trap Hack Attempts . | . . . . Triggered . | . . . . Disarmed . | . . . . Reprogrammed . | . . . . Reused . | . . . . Traps Extracted . | . . . . Installed . | . . . . Triggered . | . . . . Machines | -11 -10 -10 -10 ---------- Run | Yrd Mat Min Sub Machines Disabled 2 | . 2 . . Max in Single Turn 1 | . 1 . . Machines Repaired . | . . . . Machines Dismantled . | . . . . Machines Sabotaged . | . . . . Overloaded Fab Kills . | . . . . Hacking | -11 -10 -10 -10 --------- Run | Yrd Mat Min Sub Machines Accessed 10 | . 9 1 . Terminals 9 | . 8 1 . Fabricators . | . . . . Repair Stations . | . . . . Recycling Units 1 | . 1 . . Scanalyzers . | . . . . Garrison Access . | . . . . Total Hacks 33 | . 30 3 . Successful 16 | . 16 . . Failed 17 | . 14 3 . Catastrophic . | . . . . Database Lockouts . | . . . . Manual 26 | . 23 3 . Terminals 31 | . 28 3 . Fabricators . | . . . . Repair Stations . | . . . . Recycling Units 2 | . 2 . . Scanalyzers . | . . . . Garrison Access . | . . . . Terminal Hacks 6 | . 6 . . Branch Access Points 1 | . 1 . . Terminal Index 1 | . 1 . . Alert Level 1 | . 1 . . Locate Traps 1 | . 1 . . Maintenance Status 1 | . 1 . . Security Status 1 | . 1 . . Fabricator Hacks . | . . . . Repair Station Hacks . | . . . . Recycling Unit Hacks . | . . . . Scanalyzer . | . . . . Garrison Access Hacks . | . . . . Unauthorized Hacks 10 | . 10 . . Terminals 8 | . 8 . . Assimilate 1 | . 1 . . Botnet 7 | . 7 . . Fabricators . | . . . . Repair Stations . | . . . . Recycling Units 2 | . 2 . . Reject 1 | . 1 . . Mask 1 | . 1 . . Scanalyzers . | . . . . Garrison Access . | . . . . Data Cores Recovered . | . . . . Used . | . . . . Hacking Detections 8 | . 7 1 . Full Trace Events 1 | . 1 . . Feedback Events . | . . . . Feedback Blocked . | . . . . Robot Schematics Acquired . | . . . . Robots Built . | . . . . Authchips . | . . . . Time . | . . . . Total Robot Build Rating . | . . . . Part Schematics Acquired . | . . . . Parts Built . | . . . . Authchips . | . . . . Time . | . . . . Total Part Build Rating . | . . . . Parts Repaired . | . . . . Time . | . . . . Parts Recycled . | . . . . Recycled Matter . | . . . . Retrieved Matter . | . . . . Retrieved Components . | . . . . Parts Scanalyzed . | . . . . Part Schematics Acquired . | . . . . Parts Damaged . | . . . . Bothacking | -11 -10 -10 -10 ------------ Run | Yrd Mat Min Sub Used RIF Installer . | . . . . Robots Hacked . | . . . . Non-combat . | . . . . Combat . | . . . . Robot Hacks Applied . | . . . . Relay Couplers Released . | . . . . Fabnet Peak Effective % . | . . . . Robots Rewired . | . . . . Allies Hacked . | . . . . Hacks Repelled . | . . . . Allies | -11 -10 -10 -10 -------- Run | Yrd Mat Min Sub Total Allies 1 | . 1 . . Largest Group 1 | . 1 1 . Highest-Rated Group 10 | . 10 10 . Highest-Rated Ally 10 | . 10 10 . Total Orders 2 | . 1 1 . ROAM 1 | . . 1 . FOLLOW 1 | . 1 . . Ally Attacks . | . . . . Total Damage . | . . . . Kills . | . . . . Allies Corrupted . | . . . . Allies Melted . | . . . . Intel | -11 -10 -10 -10 ------- Run | Yrd Mat Min Sub Robot Analysis Total . | . . . . Derelict Logs Recovered 3 | . . 1 2 Drone Launches . | . . . . Drone Recoveries . | . . . . Exploration | -11 -10 -10 -10 ------------- Run | Yrd Mat Min Sub Turns Passed 4139 | 133 2092 1143 771 Spaces Moved 2348 | 72 1180 660 436 Core 8 | 8 . . . Treads 2340 | 64 1180 660 436 Legs . | . . . . Wheels . | . . . . Hover . | . . . . Flight . | . . . . Fastest Speed 50 | 50 160 160 160 Average Speed 159 | 147 160 160 160 Slowest Speed 160 | 160 160 160 160 Overloaded Moves . | . . . . Propulsion Burnouts . | . . . . Robots Hopped . | . . . . Cave-ins Triggered . | . . . . Exploration Rate (%) 55 | 7 96 89 28 Regions Visited 3 Branch Regions 2 Pre-discovered Areas 2 | . . . 2 Known Exits Taken 2 | . 1 1 . Unknown Exits Taken 1 | 1 . . . Scrap Searched 4 | . . 2 2 Spaces Dug 2 | . 2 . . Terrain Destroyed 200 | . 70 64 66 Melee . | . . . . Projectile 2 | . 2 . . AOE 198 | . 68 64 66 Terrain Rammed . | . . . . Walls Destroyed . | . . . . Machines Disabled . | . . . . Actions | -11 -10 -10 -10 --------- Run | Yrd Mat Min Sub Total 2637 | 89 1323 730 495 Wait 123 | 3 55 35 30 Move 2345 | 71 1179 659 436 Hop . | . . . . Pick Up 25 | 4 15 3 3 Fast Attach 10 | 5 4 . 1 Attach 4 | 1 2 . 1 Detach 5 | . 4 . 1 Swap 10 | 2 3 4 1 Drop 25 | . 13 6 6 Fire 82 | 3 47 16 16 Melee . | . . . . Ram . | . . . . Kick . | . . . . Crush 8 | . 1 7 . Escape Stasis . | . . . . Rewire . | . . . . Trap . | . . . . Miscellaneous . | . . . . Route ------- -11/Scrapyard -10/Materials (discovered 6 exits: [*Mat x3] / *Min x2 / *Sub) -10/Mines (discovered 2 exits: [*Mat] / *Sub) -10/Subcaves History --------- Turn | Location | Event 11 | -11/Scrapyard | Discovered new exit (range 15) 134 | -11/Scrapyard | Entered Materials 334 | -10/Materials | Build established: Mutant 440 | -10/Materials | Discovered new exit (range 14) 531 | -10/Materials | Discovered new exit (range 16) 680 | -10/Materials | Discovered new exit (range 3) 834 | -10/Materials | Derelicts attacked the area 1114 | -10/Materials | Discovered new exit (range 7) 1249 | -10/Materials | Discovered new exit (range 13) 1419 | -10/Materials | Discovered new exit (range 16) 1985 | -10/Materials | Identified exit to Mines 2226 | -10/Materials | Entered Mines 2226 | -10/Mines | Accompanied by 1 ally 2284 | -10/Mines | Identified exit to Subcaves 2355 | -10/Mines | Received a Rocket Launcher from a helpful Derelict 2942 | -10/Mines | Joined a pair of Derelicts in attacking an 0b10 outpost 3111 | -10/Mines | Discovered new exit (range 7) 3256 | -10/Mines | Build established: Scavenger-Mutant 3296 | -10/Mines | Core integrity fell below 50% 3369 | -10/Mines | Entered Subcaves 3437 | -10/Subcaves | Learned location of Storage (-9) 3480 | -10/Subcaves | Ambushed by swarm of Subdwellers 3535 | -10/Subcaves | Core integrity fell below 20% 3542 | -10/Subcaves | Lost 4 allies 3875 | -10/Subcaves | Build established: Mutant 3878 | -10/Subcaves | Shifting Twisted Machinery released Battle Cannon 3897 | -10/Subcaves | Shifting Twisted Machinery released Sub. Machine Gun 4127 | -10/Subcaves | Disturbed a concealed Subdweller 4140 | -10/Subcaves | Destroyed by 9P-KJQ(R) with Subdweller Laser Last Messages --------------- 03885_ XI-L5Y(u) tweaks Twisted Machinery. Sub. Machine Gun falls loose from the Twisted Machinery. 03945_ XI-L5Y(u) tweaks Twisted Machinery. 04005_ XI-L5Y(u) deconstructs Twisted Machinery. 04048_ System corrupted: Component data lost. 04127_ 9P-KJQ(R) angrily emerges from the Twisted Machinery. 04128_ Searching scrap... 04128_ Found Sub. Power Source. 04128_ Found 64 Matter. 04128_ Beamcaster destroyed. 04129_ Acquired 64 matter. 04129_ Searching scrap... 04129_ Found Scrap Shield. 04129_ Found 50 Matter. 04130_ Acquired 20 matter. 04132_ Acquired 10 matter. 04132_ Lgt. Angular Momentum Engine destroyed. Map ----- +----------------------------------------------------+ | ??????????????????????????????????? | | ??????????????????????????????????? | | ?????????????????????????????? ???? | | ???????????????????????????????"??? | | ???????????????????????????????""?# | | ???????????????????????????????? # | | ?????????????????????????????????? | | ??????????????????????????????????# | | ????????????????????????????###?### | | ?????????????????######???### ### | | ???????????????### ##### | | ??????????????## ## ## | | ??????????????# ### | | ??????????????## ## # ##?## | | ??????????????# ##### #???? | | ??????????????# ##??###### ##???? | | ??????????????# ##?# ##??###????? | | ??????????????## ## ##????????? | | ???????????????# ## ##???????? | | ???????????????# #???????? | | ??????????????## #???????? | | ??????????????# #???????? | | ?????????####### ## #???????? | | ????????## "## ##?## ##???????? | | ????????# R# #" ##???? #????????? | | ????????#*@# #?????? ##????????? | | ????????#!<# #" #???????#?????????? | | ????????#%#### #?????????????????? | | ????????###??### #????????????????? | | ???????????????? ???????????????? | | ???????????????? ??????????????? | | ???????????????? ?????????????? | | ????????????????#? ????????????? | | ?????????????????? ???????????? | | ??????????????????? ??????????? | | ??????????????????? #?????????? | | ???????????????????? ??????????? | | ???????????????????? ??????????? | | ????????????????????? ?????????? | | ?????????????????????# ??????????? | | ??????????????????????????????????? | | ??????????????????????????????????? | | ??????????????????????????????????? | | ??????????????????????????????????? | | ??????????????????????????????????? | | ??????????????????????????????????? | | ??????????????????????????????????? | | ??????????????????????????????????? | | ??????????????????????????????????? | | ??????????????????????????????????? | +----------------------------------------------------+ Best States ------------- Heat Dissipation 35 Energy Generation 18 Energy Capacity 250 Matter Stores 300 Matter Capacity 300 Sight Range 18 Terrain Scan Density 10 Evasion (%) 40 Recoil Reduction 2 Item Schematics ----------------- None Robot Schematics ------------------ None Fabricated ------------ Nothing Alien Tech Used ----------------- None Achievements -------------- None Challenges ------------ None Game ------ Seed DeliveryBottomlessMatter Manual? 0 Play Time 00:47:34 Cumulative 36.7 hours Start 2024.08.11 @ 16:31:15 End 2024.08.11 @ 17:25:00 Sessions 1 Manual Loads 0 Difficulty Rogue Special Mode None Game No. 35 Rogue 35 Adventurer 0 Explorer 0 Win Type - Total 0 Types 0/0/0/0/0/0/0/0/0 Lore% 14 Gallery% 35 Achievement% 32 Wizard Run 0 Options --------- Layout 1 ASCII 0 Keyboard 1 Movement Vi Keybinds 0 Fullscreen 2 Font 24/Smallcaps Map View 50x35 Zoom Use 0% Tactical HUD 1 Map Filters NONE Filters NONE Steam 1 RUN: 5e2df833-09d2-4c49-bcfd-1b5d40f7a1c1